bitfinex/quotes_ETHUSD_20250622
["timestamp","ask_amount","ask_price","bid_price","bid_amount"]
[1750617645151,0.8378,2193.6,2193.2,4.60511863]
[1750617645347,0.7792,2193.6,2193.3,2.067]
[1750617645649,0.7792,2193.9,2193.7,4.55838522]
[1750617645855,0.7792,2194.1,2193.3,2.067]
[1750617646005,0.7792,2194.4,2193.9,4.55794065]
[1750617646200,0.90422,2194.3,2194.0,4.60341546]
[1750617646402,0.7792,2194.4,2194.1,4.55764388]
[1750617646906,0.2254202,2194.6,2194.5,4.55684666]
[1750617647119,0.2254202,2194.6,2194.1,0.781]
[1750617647419,0.2840202,2194.6,2194.2,4.55746969]
[1750617647721,0.2840202,2194.6,2194.3,4.55719558]
[1750617647932,0.2254202,2194.6,2194.4,0.045566]
[1750617648132,0.2254202,2194.6,2194.5,5.33784666]
[1750617648695,0.2254202,2194.6,2194.5,5.38339664]
[1750617648898,0.2254202,2194.6,2194.5,5.33784666]
[1750617649148,0.2254202,2194.6,2194.5,6.37288682]
[1750617649345,0.2254202,2194.6,2194.5,6.92288682]
[1750617649648,0.2254202,2194.6,2194.5,6.87733676]
[1750617649857,0.2254202,2194.6,2194.4,2.066]
[1750617650157,0.2254202,2194.6,2194.5,4.55684666]
[1750617652252,0.2254202,2194.6,2194.5,4.60240276]
[1750617652776,0.2254202,2194.6,2194.5,5.34294666]
[1750617652928,0.2254202,2194.6,2194.5,7.40794666]
[1750617653127,0.2254202,2194.6,2194.2,10.959]
[1750617653485,0.2254202,2194.6,2194.3,4.55726157]
[1750617653625,0.2254202,2194.6,2194.4,4.6026094]
[1750617653821,0.2254202,2194.6,2194.5,4.55684666]
[1750617654021,0.2254202,2194.6,2194.5,5.31594666]
[1750617654228,0.2254202,2194.6,2194.5,7.11849907]
[1750617654482,0.2254202,2194.6,2194.5,7.66849907]
[1750617655178,0.2254202,2194.6,2194.5,7.62294594]
[1750617655337,0.2254202,2194.6,2194.5,7.66849355]
[1750617655728,0.2254202,2194.6,2194.5,7.62294594]
[1750617656377,0.8086,2195.8,2195.0,0.7591]
[1750617656578,0.8086,2195.8,2195.5,4.55473047]
[1750617656732,0.867,2195.8,2195.5,0.45547305]
[1750617656924,0.8086,2196.1,2195.6,0.04553754]
[1750617657125,0.0584,2196.4,2195.4,0.7591]
[1750617657364,0.0584,2196.1,2195.5,6.61962449]
[1750617657541,0.0584,2196.1,2195.6,4.55453385]
[1750617657742,0.8086,2196.2,2195.7,0.04553762]
[1750617657978,0.8086,2196.2,2195.8,4.55414882]
[1750617658149,0.867,2196.6,2195.6,2.6482469]
[1750617658348,0.867,2196.6,2196.1,4.55351187]
[1750617658349,0.8086,2196.6,2196.1,4.55351187]
[1750617658591,0.8086,2196.6,2196.2,4.55329666]
[1750617658736,0.867,2196.6,2196.2,4.55329666]
[1750617659132,0.0584,2196.5,2196.2,2.064]
[1750617660390,0.0584,2196.5,2196.1,4.55351433]
[1750617660594,0.0584,2196.4,2196.2,2.064]
[1750617661117,0.0584,2196.4,2195.6,1.8891469]
[1750617661393,0.7931,2196.4,2196.1,4.55340256]
[1750617661694,0.7931,2196.4,2196.2,4.59883088]
[1750617661846,1.0769202,2196.7,2196.3,4.55310523]
[1750617662041,1.0769202,2196.7,2196.3,2.064]
[1750617662342,0.0584,2196.5,2196.1,4.55340846]
[1750617662562,0.0584,2196.5,2196.1,5.46792828]
[1750617662794,0.0584,2196.6,2195.9,2.064]
[1750617662944,0.0584,2196.6,2196.1,4.55341638]
[1750617663146,1.0769202,2196.7,2196.2,0.04552934]
[1750617663473,1.0769202,2196.7,2196.4,4.55289109]
[1750617663796,1.0185202,2196.7,2196.5,0.04552258]
[1750617663941,1.0185202,2196.7,2196.4,4.55275476]
[1750617664138,1.0185202,2196.7,2196.4,6.61675476]
[1750617664384,1.0185202,2196.7,2196.4,6.61679761]
[1750617664568,1.0769202,2196.7,2196.4,2.064]
[1750617664772,0.0584,2196.6,2196.1,2.064]
[1750617664944,10.7709,2196.4,2196.1,2.064]
[1750617665145,10.0,2196.1,2195.0,4.55568133]
[1750617665347,0.0584,2195.8,2195.2,2.094]
[1750617665578,0.7709,2196.0,2195.5,4.55465349]
[1750617665763,0.7709,2196.0,2195.3,7.06725713]
[1750617665970,0.7709,2196.0,2195.4,5.7172007]
[1750617666169,0.7709,2196.0,2195.5,0.04553695]
[1750617666341,0.7709,2196.0,2195.4,1.16225766]
[1750617666546,0.7709,2196.0,2195.4,4.55495412]
[1750617666943,0.7709,2196.0,2195.5,18.0]
[1750617667183,0.8293,2196.0,2195.5,18.0]
[1750617667560,0.7709,2196.0,2195.6,4.60000223]
[1750617667758,0.7709,2196.0,2195.6,0.04553706]
[1750617668084,0.8293,2196.0,2195.3,7.02931707]
[1750617668262,0.8293,2196.0,2195.4,6.48562651]
[1750617668462,0.8293,2196.0,2195.4,6.48561627]
[1750617668659,0.8293,2196.0,2195.5,4.55474313]
[1750617668982,0.8293,2196.0,2195.5,0.38022437]
[1750617669183,0.8293,2196.0,2195.5,4.93496435]
[1750617669351,0.7709,2196.0,2195.6,1.14204995]
[1750617669553,0.0584,2195.9,2195.5,2.47422437]
[1750617670080,10.8293,2196.0,2195.5,2.47422437]
[1750617670286,0.0584,2195.9,2195.5,7.02898528]
[1750617670685,0.0584,2195.9,2195.6,4.55451825]
[1750617670871,0.7709,2196.0,2195.7,4.55435624]
[1750617671075,0.7709,2196.0,2195.5,7.02882557]
[1750617671076,0.8293,2196.0,2195.5,7.02893018]
[1750617671277,0.7709,2196.0,2195.7,4.55425891]
[1750617671463,0.7542,2196.4,2195.8,0.04553414]
[1750617671667,0.7542,2196.4,2195.7,0.8083]
[1750617672089,0.7542,2196.4,2195.8,4.55406479]
[1750617672680,0.0584,2196.3,2195.9,4.59944256]
[1750617672876,0.0584,2196.3,2196.0,2.094]
[1750617673094,0.0584,2196.3,2196.1,0.04553051]
[1750617673596,0.7542,2196.4,2196.1,0.04553051]
[1750617673803,0.0584,2196.0,2195.8,2.094]
[1750617674306,0.0584,2196.0,2195.6,0.70289302]
[1750617674492,0.0584,2196.0,2195.5,2.47422437]
[1750617674677,9.88463245,2196.0,2195.5,2.47422437]
[1750617675004,9.88463245,2196.0,2195.5,0.38022437]
[1750617675005,10.0584,2195.6,2195.5,0.38022437]
[1750617677503,0.0584,2195.6,2195.5,0.38022437]
[1750617677703,8.4591,2195.8,2195.5,0.38022437]
[1750617677704,0.7561,2195.8,2195.5,0.38022437]
[1750617678087,0.8145,2195.8,2195.5,0.38022437]
[1750617678494,0.7561,2195.8,2195.5,0.38022437]
[1750617678794,0.7561,2195.8,2195.5,1.32925028]
[1750617678983,0.7561,2195.8,2195.6,0.04553968]
[1750617679315,0.7561,2196.1,2195.6,2.13953968]
[1750617679516,0.7561,2196.1,2195.8,4.55402433]
[1750617679818,18.4611,2196.4,2195.7,4.55427473]
[1750617680119,0.0584,2196.3,2195.7,4.55435624]
[1750617680320,0.0584,2196.3,2195.9,4.5538487]
[1750617680620,0.0584,2196.3,2195.8,5.21887458]
[1750617680821,0.0584,2196.3,2195.6,2.094]
[1750617681002,0.0584,2196.3,2195.7,4.59989206]
[1750617681203,0.0584,2196.3,2195.8,4.55404386]
[1750617682002,28.34173245,2196.4,2195.8,4.55404386]
[1750617682205,0.0584,2196.3,2195.7,4.55421964]
[1750617682380,0.0616,2196.1,2195.6,2.094]
[1750617682783,10.0,2195.9,2195.5,0.38022437]
[1750617683014,0.8177,2195.8,2195.5,0.38022437]
[1750617683213,0.7561,2195.8,2195.6,0.04554204]
[1750617683427,0.7561,2195.8,2195.4,6.64887727]
[1750617683614,0.7561,2195.8,2195.5,5.75859835]
[1750617684186,0.7561,2195.8,2195.6,4.5545034]
[1750617684414,0.7561,2195.8,2195.5,1.2038389]
[1750617684689,0.7561,2195.8,2195.5,4.55476065]
[1750617684903,0.7561,2195.8,2195.4,6.64886281]
[1750617685111,0.7561,2195.8,2195.4,6.59886281]
[1750617685312,0.7561,2195.8,2195.5,4.5547473]
[1750617686037,10.0,2196.0,2194.8,2.094]
[1750617686038,0.7824,2195.4,2194.8,2.094]
[1750617686184,0.0616,2195.3,2194.9,0.38032831]
[1750617687106,0.0616,2195.3,2195.0,0.04555478]
[1750617687495,0.0616,2195.3,2195.0,0.42586576]
[1750617687841,0.0616,2195.3,2195.0,0.38031098]
[1750617690028,8.4944,2195.4,2195.0,0.38031098]
[1750617690214,8.556,2195.4,2195.0,0.38031098]
[1750617690929,8.556,2195.4,2195.2,4.55534091]
[1750617690930,0.7824,2195.4,2195.2,4.55534091]
[1750617691230,0.7824,2195.4,2195.0,1.57699735]
[1750617691231,10.7824,2195.4,2195.3,0.04554634]
[1750617691431,10.844,2195.4,2195.0,1.19668637]
[1750617693427,10.844,2195.4,2195.0,5.75246671]
[1750617693834,10.844,2195.4,2195.0,1.19668637]
[1750617694135,10.844,2195.4,2194.9,4.55590647]
[1750617694433,10.844,2195.4,2195.0,4.55579962]
[1750617695920,10.844,2195.4,2195.1,4.55546921]
[1750617696116,10.844,2195.4,2195.0,4.55569549]
[1750617698335,10.844,2195.4,2194.8,2.1318]
[1750617698639,10.7824,2195.4,2195.2,4.55537476]
[1750617698798,10.7824,2195.4,2195.1,4.60108552]
[1750617698999,10.7824,2195.4,2195.2,4.55532289]
[1750617699235,0.7824,2195.4,2195.2,4.55532289]
[1750617699942,0.7824,2195.4,2195.2,4.60087096]
[1750617700232,0.7824,2195.4,2195.2,0.04554807]
[1750617700441,0.0616,2195.2,2194.6,0.8331]
[1750617700600,10.0,2195.3,2193.9,4.5579711]
[1750617700601,0.0616,2194.9,2194.5,2.073]
[1750617700799,10.0,2195.0,2194.5,2.073]
[1750617701032,0.0616,2194.9,2194.5,6.6298223]
[1750617701246,0.0616,2194.9,2194.5,7.74851724]
[1750617701957,0.0616,2194.9,2194.5,3.19169494]
[1750617702151,17.686,2195.0,2194.5,3.19169494]
[1750617702331,0.0616,2194.9,2194.5,3.19169494]
[1750617702656,17.686,2195.0,2194.5,3.19169494]
[1750617703378,17.686,2195.0,2194.5,2.073]
[1750617703521,0.0616,2194.6,2194.2,2.073]
[1750617703917,0.0616,2194.4,2193.9,4.55809289]
[1750617704142,0.0616,2194.4,2194.2,2.073]
[1750617705359,8.4558,2194.5,2194.2,2.073]
[1750617705926,0.0616,2194.4,2194.2,2.073]
[1750617706120,8.4558,2194.5,2194.2,2.073]
[1750617706535,0.0616,2194.4,2194.2,2.073]
[1750617707723,0.7718,2194.5,2194.2,7.29804361]
[1750617707925,0.8334,2194.5,2194.2,0.66762355]
[1750617708137,0.8334,2194.5,2194.2,0.71319172]
[1750617708769,0.7718,2194.5,2194.1,6.63057019]
[1750617708948,10.0616,2194.4,2194.1,2.073]
[1750617709148,10.0,2194.4,2194.1,2.073]
[1750617709456,10.0,2194.4,2193.8,13.016]
[1750617709457,0.7564,2194.1,2193.8,13.016]
[1750617709653,0.0616,2194.0,2193.8,13.016]
[1750617710231,0.7564,2194.1,2193.8,2.073]
[1750617710445,0.0616,2194.0,2193.8,2.073]
[1750617711771,0.7564,2194.1,2193.8,2.073]
[1750617711937,0.0616,2194.0,2193.8,2.073]
[1750617712139,0.0566,2194.0,2193.8,2.073]
[1750617712334,0.0566,2193.9,2193.8,2.073]
[1750617713674,24.72995245,2193.9,2193.8,2.073]
[1750617715370,0.0566,2193.8,2193.4,2.074]
[1750617715580,24.67335245,2193.9,2193.4,2.074]
[1750617715954,0.0566,2193.8,2193.4,6.63312115]
[1750617716271,24.67335245,2193.9,2193.4,6.63312115]
[1750617716845,0.0566,2193.8,2193.4,6.63312115]
[1750617717336,0.0566,2193.8,2193.5,4.55892245]
[1750617717539,11.32752845,2194.1,2193.6,4.60430105]
[1750617717736,11.27092845,2194.1,2193.6,0.04558479]
[1750617717978,11.27092845,2194.1,2193.4,6.63297927]
[1750617718144,0.0566,2194.0,2193.5,4.55890919]
[1750617718343,0.0566,2194.0,2193.4,2.074]
[1750617718585,0.0566,2193.7,2193.4,2.074]
[1750617718761,0.0566,2193.7,2193.3,2.074]
[1750617719700,7.7196,2193.7,2193.3,6.63331415]
[1750617720056,7.663,2193.7,2193.3,6.63331415]
[1750617720253,0.0566,2193.6,2193.1,4.55972882]
[1750617720554,0.792,2193.4,2193.2,4.55943197]
[1750617720755,0.792,2194.0,2193.2,5.36336366]
[1750617720958,0.792,2194.0,2193.6,4.55861302]
[1750617721158,0.792,2194.0,2193.5,4.55879104]
[1750617721402,0.0566,2193.9,2193.3,0.0379]
[1750617721704,0.0566,2193.6,2193.2,5.31775485]
[1750617721987,0.0566,2193.5,2193.2,2.074]
[1750617722190,0.0566,2193.5,2193.0,13.021]
[1750617722497,0.0566,2193.5,2193.0,17.58086049]
[1750617723085,0.792,2193.6,2193.1,4.55973528]
[1750617723599,0.792,2193.6,2193.0,13.021]
[1750617723600,0.0566,2193.5,2193.2,4.55952286]
[1750617723833,10.0566,2193.4,2193.0,13.021]
[1750617724036,10.0566,2193.4,2193.1,4.55975559]
[1750617724842,10.0,2193.4,2193.1,4.55959939]
[1750617725405,10.0,2193.4,2193.0,18.95883714]
[1750617725406,0.0566,2193.3,2193.0,18.95878268]
[1750617725634,10.0566,2193.4,2193.1,4.55973805]
[1750617725816,8.702,2194.2,2193.3,4.5593398]
[1750617726020,0.792,2194.2,2193.6,0.0379]
[1750617726220,0.0566,2194.1,2193.7,4.55838911]
[1750617726433,0.8486,2194.2,2193.9,4.55799859]
[1750617726603,0.792,2194.2,2193.9,4.55799859]
[1750617726803,1.369872,2194.6,2194.4,4.55694373]
[1750617727111,0.0566,2194.6,2194.2,2.058]
[1750617727320,0.0566,2194.6,2194.2,6.61546569]
[1750617728031,0.9325899,2194.6,2194.2,2.058]
[1750617728249,0.0566,2194.5,2194.1,2.058]
[1750617728551,0.0566,2194.3,2194.1,2.058]
[1750617728747,0.792,2194.4,2194.1,2.058]
[1750617729354,0.0566,2194.3,2194.1,2.058]
[1750617729863,0.792,2194.4,2194.1,2.058]
[1750617730005,0.0566,2194.2,2194.1,2.058]
[1750617730209,7.678,2194.2,2193.7,2.058]
[1750617730445,0.792,2194.0,2193.6,0.53551241]
[1750617730604,0.0566,2193.9,2193.4,2.058]
[1750617730934,0.792,2194.0,2193.5,4.55887854]
[1750617731142,0.792,2194.0,2193.3,2.058]
[1750617731143,7.672,2193.9,2193.3,2.058]
[1750617731433,7.672,2193.9,2193.4,4.55903396]
[1750617731626,0.0566,2193.8,2193.4,4.55903396]
[1750617731801,7.672,2193.9,2193.4,4.55903396]
[1750617732201,0.0566,2193.8,2193.4,4.55903396]
[1750617732940,0.792,2194.0,2193.5,0.04558465]
[1750617733236,10.0,2193.7,2193.2,2.058]
[1750617733415,0.0566,2193.6,2193.2,6.61744855]
[1750617733615,0.0566,2193.6,2193.2,3.87963183]
[1750617735151,0.0566,2193.6,2193.2,8.43915612]
[1750617735645,0.0566,2193.6,2193.3,4.55933633]
[1750617735825,10.0,2193.7,2193.4,4.55904667]
[1750617736025,10.0,2193.7,2193.2,6.61749746]
[1750617736026,10.0,2193.7,2193.3,4.55922562]
[1750617736358,10.0566,2193.7,2193.2,6.61741888]
[1750617737606,23.1658296,2193.5,2193.2,2.058]
[1750617737808,0.0566,2193.4,2193.2,2.058]
[1750617738015,0.8429,2193.4,2193.2,2.058]
[1750617738217,0.0566,2193.3,2193.2,2.058]
[1750617738763,7.7376,2193.3,2192.6,0.7974]
[1750617738959,0.0566,2193.0,2192.8,2.058]
[1750617739100,0.0566,2193.0,2192.6,2.058]
[1750617739306,10.0,2192.9,2192.6,6.61879129]
[1750617739539,10.0566,2192.9,2192.6,6.61879129]
[1750617739835,10.0566,2192.9,2192.6,2.058]
[1750617740243,10.0566,2192.9,2192.6,6.61876165]
[1750617740444,10.0566,2192.9,2192.6,2.058]
[1750617740606,0.0566,2192.7,2192.6,2.058]
[1750617740812,0.8312,2192.8,2192.6,6.61868545]
[1750617741210,0.8312,2192.8,2192.7,4.5605874]
[1750617741531,0.8312,2192.8,2192.6,6.6186891]
[1750617741928,0.8312,2192.8,2192.7,4.5605874]
[1750617742135,0.8312,2192.8,2192.6,6.61868982]
[1750617742648,0.8312,2192.8,2192.7,4.5605874]
[1750617743168,0.46562251,2193.3,2193.0,4.55996352]
[1750617743340,8.5072,2193.4,2193.1,4.55957383]
[1750617743550,0.8312,2193.0,2192.6,2.058]
[1750617743748,10.0608,2192.9,2192.6,2.058]
[1750617745027,0.0608,2192.8,2192.6,2.058]
[1750617745881,23.1658296,2192.9,2192.6,2.058]
[1750617746034,0.7683,2192.6,2192.2,10.952]
[1750617746239,10.0,2192.5,2192.1,2.058]
[1750617746471,0.0608,2192.4,2192.1,2.058]
[1750617746850,0.7683,2192.4,2192.1,2.058]
[1750617747055,0.0608,2192.3,2192.1,2.058]
[1750617747381,7.7418,2192.3,2192.1,2.058]
[1750617747734,0.0608,2192.2,2192.1,2.058]
[1750617747939,0.0608,2192.2,2191.6,6.62076297]
[1750617748169,7.7418,2192.3,2191.7,2.28183267]
[1750617748369,0.7683,2192.4,2191.7,2.28183267]
[1750617748370,0.7683,2192.4,2191.7,6.8444621]
[1750617748574,10.0,2192.3,2191.7,6.8444621]
[1750617749341,10.0,2192.3,2191.8,4.56243788]
[1750617749640,10.0,2192.3,2191.9,4.6078459]
[1750617749848,10.0,2192.3,2191.9,5.75305755]
[1750617750046,10.0,2192.3,2191.9,23.75305755]
[1750617750276,10.0,2192.3,2191.9,23.70743791]
[1750617750642,10.0608,2192.3,2191.9,19.14521165]
[1750617750837,10.0608,2192.3,2191.9,18.0]
[1750617751274,10.0608,2192.3,2191.9,22.56224148]
[1750617751461,10.0608,2192.3,2191.9,4.56224148]
[1750617751874,0.0608,2192.2,2191.7,2.059]
[1750617752041,13.2266296,2192.1,2191.5,13.69348388]
[1750617752374,0.0608,2192.0,2191.5,18.25646095]
[1750617752555,0.8318,2192.0,2191.5,18.25646095]
[1750617752743,0.8318,2192.0,2191.6,4.56285409]
[1750617752943,0.8318,2192.0,2191.5,10.87328388]
[1750617752944,0.771,2192.0,2191.5,10.87328388]
[1750617753146,0.0608,2191.9,2191.5,12.93228388]
[1750617753377,1.50546297,2191.9,2191.5,10.87328388]
[1750617753681,0.0608,2191.9,2191.5,10.87328388]
[1750617755876,0.0608,2191.9,2191.5,15.43633435]
[1750617756073,10.0,2191.7,2191.5,10.87328388]
[1750617756276,0.8318,2191.6,2191.5,10.87328388]
[1750617756881,0.8318,2191.6,2191.5,10.82328388]
[1750617757486,12.753483,2191.6,2191.5,10.82328388]
[1750617758864,12.142683,2191.6,2191.5,10.82328388]
[1750617759055,10.771,2191.6,2191.5,10.82328388]
[1750617759275,10.8318,2191.6,2191.5,10.82328388]
[1750617760904,10.771,2191.6,2191.5,10.82328388]
[1750617761202,10.0,2191.6,2191.5,10.82328388]
[1750617761682,10.0,2191.6,2191.5,15.38636852]
[1750617762193,10.0,2191.6,2191.5,10.82328388]
[1750617762959,10.0,2191.6,2191.5,15.38636852]
[1750617763864,7.91,2192.1,2191.8,0.0577]
[1750617764173,10.0,2192.0,2191.8,4.56244531]
[1750617765294,10.0608,2192.0,2191.6,0.7848]
[1750617766080,10.0608,2192.0,2191.6,5.34767239]
[1750617766398,10.0,2192.0,2191.6,3.83907785]
[1750617766572,0.23851272,2192.1,2192.0,4.56204379]
[1750617767091,8.5134,2192.6,2192.0,4.56204379]
[1750617767092,0.7656,2192.6,2192.3,4.56141235]
[1750617767297,0.7656,2192.8,2192.2,0.04561172]
[1750617767497,0.23847647,2192.6,2192.2,1.51471665]
[1750617767699,0.7656,2192.8,2192.4,4.5612015]
[1750617767901,0.8264,2192.8,2192.4,4.5612015]
[1750617768306,0.8264,2192.8,2192.4,6.6272015]
[1750617769885,0.8264,2192.8,2192.4,2.066]
[1750617771306,10.0,2192.7,2192.2,2.066]
[1750617771497,0.8264,2192.8,2192.3,4.5612852]
[1750617772075,10.0,2192.9,2192.5,4.56096442]
[1750617772423,0.762,2193.3,2192.7,0.06]
[1750617772579,0.23843821,2193.1,2193.0,4.55996352]
[1750617772976,10.0,2193.4,2192.9,2.066]
[1750617773171,2.32255296,2193.3,2192.8,5.38016258]
[1750617773508,10.0597,2193.1,2192.8,2.066]
[1750617774398,10.0597,2193.1,2192.8,6.62637525]
[1750617775600,10.0597,2193.1,2192.8,2.066]
[1750617776117,10.0597,2193.1,2192.8,6.62636594]
[1750617776709,10.0597,2193.1,2192.8,4.56036594]
[1750617777580,10.0597,2193.1,2192.7,2.066]
[1750617777581,10.0,2193.1,2192.9,4.56015164]
[1750617777781,10.0,2193.2,2192.9,4.56015164]
[1750617778301,10.0,2193.2,2192.8,4.56026869]
[1750617778606,10.0597,2193.2,2192.8,4.56026869]
[1750617779574,0.0597,2193.1,2192.8,4.56026869]
[1750617780449,10.0,2193.2,2192.9,4.56012237]
[1750617780799,10.0,2193.2,2192.9,4.56009781]
[1750617781015,10.0,2193.2,2193.0,4.55981429]
[1750617782742,7.91,2193.3,2193.1,4.55975559]
[1750617782902,17.91,2193.3,2193.2,4.55954769]
[1750617783212,8.7612,2194.0,2193.2,3.87239186]
[1750617783409,7.91,2194.0,2193.8,4.55814968]
[1750617783735,0.7915,2194.3,2193.8,4.55819831]
[1750617783899,13.1658296,2194.7,2193.7,2.066]
[1750617784104,8.5466,2194.6,2193.8,0.8046]
[1750617784340,10.0,2194.5,2194.1,4.55767183]
[1750617784634,0.0597,2194.4,2193.9,4.55798244]
[1750617784838,0.29800655,2194.4,2193.9,4.55804517]
[1750617784999,0.29800655,2194.4,2193.9,4.5579913]
[1750617785199,0.0597,2194.4,2194.0,4.55785366]
[1750617785395,0.0597,2194.4,2193.9,4.55800362]
[1750617785613,10.0,2194.5,2193.9,1.22739312]
[1750617785814,0.0597,2194.4,2193.9,1.22739312]
[1750617786038,10.0,2194.5,2194.0,2.065]
[1750617786458,10.8736,2194.2,2193.6,2.058]
[1750617786638,18.5406,2194.2,2193.6,2.058]
[1750617786803,18.5406,2194.2,2193.6,2.34426]
[1750617787003,18.5406,2194.2,2193.6,6.90286832]
[1750617787205,0.0597,2193.9,2193.5,0.8046]
[1750617787526,13.1658296,2194.0,2193.6,4.55871461]
[1750617787734,13.1658296,2194.0,2193.5,0.8046]
[1750617787735,13.2255296,2194.0,2193.5,5.36349173]
[1750617788051,0.0597,2193.9,2193.6,4.55870362]
[1750617788248,0.0597,2193.9,2193.5,5.36341678]
[1750617788434,0.0597,2193.9,2193.5,5.36349623]
[1750617788635,0.0597,2193.9,2193.6,4.55868824]
[1750617788839,10.8736,2194.2,2193.7,4.5584871]
[1750617789152,10.8736,2194.2,2193.8,4.55827075]
[1750617789466,10.8736,2194.2,2193.7,4.55850845]
[1750617789764,10.0,2194.3,2193.8,4.60377321]
[1750617790082,10.0597,2194.3,2193.8,4.60377321]
[1750617790230,10.0597,2194.3,2193.8,4.55819498]
[1750617790752,10.0597,2194.3,2193.7,4.55839978]
[1750617790923,11.79871505,2194.3,2193.8,2.058]
[1750617791112,0.0597,2194.2,2193.8,2.058]
[1750617792352,11.73901505,2194.3,2193.1,0.8076]
[1750617792353,0.7529,2193.7,2193.1,0.8076]
[1750617792669,0.7529,2193.7,2193.2,2.058]
[1750617792670,0.0597,2193.6,2193.2,2.058]
[1750617792817,0.0597,2193.5,2193.2,2.058]
[1750617793330,10.0,2193.6,2193.2,2.058]
[1750617793727,10.0597,2193.6,2193.2,2.058]
[1750617794121,10.0597,2193.6,2193.2,6.61753536]
[1750617794551,10.7529,2193.7,2193.4,4.55909418]
[1750617794746,10.7529,2193.7,2193.3,4.55925221]
[1750617794950,0.7529,2193.7,2193.3,4.55925221]
[1750617795132,8.4249,2193.7,2193.4,4.55910576]
[1750617795454,8.4249,2193.7,2193.2,7.81596541]
[1750617795455,8.4846,2193.7,2193.3,4.55924139]
[1750617795642,8.4846,2193.7,2193.2,7.81594498]
[1750617796455,8.4846,2193.7,2193.3,4.55932317]
[1750617796754,8.4846,2193.7,2193.4,4.55911092]
[1750617797256,8.4846,2193.7,2193.3,5.87752734]
[1750617798340,8.4249,2193.7,2193.3,1.31828682]
[1750617798544,0.0597,2193.5,2193.2,2.058]
[1750617799056,0.0597,2193.5,2193.2,6.61754055]
[1750617799225,10.0597,2193.6,2193.2,6.61754055]
[1750617800956,10.0597,2193.6,2193.3,4.55932014]
[1750617801324,0.7529,2193.7,2193.4,4.55900344]
[1750617801524,0.7529,2193.7,2193.3,5.42929943]
[1750617801525,10.8126,2193.7,2193.3,5.42929943]
[1750617802662,10.7529,2193.7,2193.3,5.42929943]
[1750617802877,0.0623,2193.6,2192.9,0.7806]
[1750617803168,0.0623,2193.6,2193.0,6.61785667]
[1750617804332,0.0623,2193.6,2193.1,4.55973092]
[1750617804747,0.0623,2193.6,2192.9,0.7806]
[1750617804974,0.0623,2193.4,2193.0,6.61795612]
[1750617805284,0.23836863,2193.5,2193.2,4.55938336]
[1750617805448,10.0,2193.6,2193.2,4.55938336]
[1750617805775,0.23836898,2193.4,2193.2,4.55938336]
[1750617806276,10.0,2193.6,2193.3,4.55932254]
[1750617806578,10.0,2193.6,2193.4,0.91187059]
[1750617808269,10.0,2193.6,2193.5,4.55892409]
[1750617808468,10.0,2193.6,2193.3,4.61921435]
[1750617808469,10.0,2194.0,2193.6,4.55856454]
[1750617808671,10.0,2194.0,2193.8,4.55829872]
[1750617809173,8.77756996,2194.3,2193.7,4.55840384]
[1750617809364,10.0,2194.2,2193.8,4.55810565]
[1750617809564,0.0623,2194.2,2193.9,4.55808582]
[1750617809767,0.0623,2194.2,2193.8,5.32804259]
[1750617809768,10.0623,2194.2,2193.8,5.32804259]
[1750617810061,10.0623,2194.2,2193.9,4.55808477]
[1750617810572,10.0623,2194.2,2193.8,0.76993694]
[1750617811568,10.0623,2194.2,2193.8,5.32822166]
[1750617811870,10.0623,2194.2,2193.8,0.76993694]
[1750617813171,10.0623,2194.2,2193.8,5.32803077]
[1750617813471,10.0623,2194.2,2193.8,0.76993694]
[1750617813638,0.0623,2194.1,2193.8,0.76993694]
[1750617814035,10.0,2194.2,2193.8,5.32823046]
[1750617814248,10.0623,2194.2,2193.8,5.32823046]
[1750617816191,10.0623,2194.2,2193.8,5.37380791]
[1750617816493,8.6698,2194.6,2194.0,5.32878514]
[1750617816773,0.0623,2194.5,2194.2,4.55744197]
[1750617817478,0.23829026,2194.4,2194.3,4.55720873]
[1750617817682,10.8221,2194.8,2194.3,1.12042021]
[1750617817908,0.0623,2194.7,2194.3,1.12042021]
[1750617818580,0.0623,2194.7,2194.3,5.67766504]
[1750617818777,10.7598,2194.8,2194.3,3.16342021]
[1750617819010,0.0623,2194.7,2194.2,2.043]
[1750617819207,10.0623,2194.4,2194.0,2.043]
[1750617819370,0.0623,2194.1,2193.8,4.55829592]
[1750617819574,0.0623,2194.1,2193.8,4.55817746]
[1750617819775,0.0623,2194.1,2193.8,6.84696813]
[1750617820904,0.0623,2194.1,2193.8,2.28879067]
[1750617821110,0.0623,2194.1,2193.8,6.84705521]
[1750617821701,0.7677,2194.2,2193.7,18.32971149]
[1750617821882,0.0623,2194.1,2193.7,18.32971149]
[1750617822808,0.0623,2194.1,2193.8,4.55828792]
[1750617823107,17.64,2194.4,2193.7,18.32971149]
[1750617823108,0.0623,2194.3,2193.9,0.04557871]
[1750617823306,18.4077,2194.4,2193.8,4.55813902]
[1750617823506,18.4077,2194.4,2193.8,7.61692528]
[1750617823982,18.4077,2194.4,2193.9,4.55809156]
[1750617824184,0.0623,2194.3,2193.9,4.55809156]
[1750617824904,18.4077,2194.4,2193.9,4.55809156]
[1750617825104,0.0623,2194.3,2193.9,4.55809156]
[1750617825303,18.4077,2194.4,2193.9,4.55809156]
[1750617826077,0.0623,2194.3,2193.9,4.55809156]
[1750617826270,0.0623,2194.3,2194.0,4.55783992]
[1750617826471,17.64,2194.5,2194.2,4.55743584]
[1750617826701,7.7023,2194.5,2194.3,4.55724726]
[1750617826886,7.64,2194.5,2194.2,5.32056338]
[1750617827086,0.0623,2194.5,2194.2,5.32056338]
[1750617827304,0.0623,2194.5,2194.2,6.43058183]
[1750617827471,0.0623,2194.5,2194.2,8.47358183]
[1750617827989,0.0623,2194.5,2194.3,4.55722765]
[1750617828306,0.0623,2194.5,2194.2,8.47356266]